Cogmind - Beta 17 @@@ ROGUE MODE // 2026.07.18 @ 19:59:35 Player: naththebg Result: Escaped! Performance ------------- Evolutions (9) 4500 Regions Visited (18) 3600 Robots Destroyed (287) 1435 Value Destroyed (12548) 12548 Prototype IDs (65) 1300 Alien Tech Used (4) 800 Bonus (59646) 59646 TOTAL SCORE: 83829 Bonus ------- Scavenger 7000 Triggered Max Security 3000 High Alert Combat Kills 3474 Follower Combat Kills 1119 Prayed to X0-1V1 5000 Major X0-1V1 Interference 18000 Subatomizer Sterilization 3000 Met Warlord at Base 500 MAIN.C Attacked Warlord 500 Scanned by Researcher 500 Pursued by Intercept 1000 Met Sigix 2000 Activated Exoskeleton 3000 Met Warlord at Command 2000 Win 3000 Challenge Win 7000 Friendly Fire -447 Cogmind --------- Core Integrity 1215/1800 Matter 299/300 Energy 168/180 System Corruption 49% Temperature Warm (149) Movement Walking (33) +NEM 1 Location To Epsilon Eridani Parts ------- > --- POWER (2) -------- Meta Core > --- PROPULSION (6) --- Centrium-FPD Exoskeleton > --- UTILITY (14) ----- Scrap Engine Advanced Heat Sink (fused) Advanced Coolant Injector Huge Storage Unit Experimental Cloaking Device (fused) Advanced Hacking Suite Advanced Hacking Suite Improved System Shield Ghost Barrier > --- WEAPON (4) ------- Enhanced Nova Cannon Enhanced Hardcell Cannon Chaos Jack Vortex Lance (fused) > --- INVENTORY (25) --- Advanced Heat Sink High-capacity Storage Unit Improved Matter Compressor (300) Improved Particle Charger Improved Particle Charger Particle Accelerator Improved Weapon Cycler Advanced Thermal Shield EM Shield Improved Component Analysis Suite Subatomic Replicator Compact HERF Cannon Peak State ------------ > --- POWER ------------ Particle-Antimatter Reactor > --- PROPULSION ------- Centrium-FPD Exoskeleton > --- UTILITY ---------- Armored Scrap Engine Advanced Cryofiber Web Advanced Heat Sink Huge Storage Unit Experimental Cloaking Device Improved Medium Armor Plating Thermal Barrier Advanced Remote Shield Advanced Hacking Suite Advanced Hacking Suite Improved System Shield Ghost Barrier X0-1V1's Piety Tracker > --- WEAPON ----------- RU-N14's Throwing Claymores v3 RU-N14's Throwing Claymores v3 Sigix Broadsword > --- INVENTORY -------- Meta Core Advanced Heat Sink Advanced Heat Sink Advanced Heat Sink Advanced Coolant Injector High-capacity Storage Unit Improved Matter Compressor Improved Particle Charger Improved Particle Charger Particle Accelerator Improved Weapon Cycler Advanced Thermal Shield EM Shield Improved Component Analysis Suite Subatomic Replicator Vortex Lance [Rating: 227] Favorites ----------- Power Constructs Engine Improved Ion Engine Power Core Meta Core Reactor Constructs Propulsion Constructs Treads Light Treads Leg Constructs Wheel Subdweller Monowheel Flight Unit Improved VTOL Module Utility X0-1V1's Piety Tracker Device X0-1V1's Piety Tracker Storage High-capacity Storage Unit Processor Advanced Signal Interpreter Hackware Advanced Hacking Suite Protection Improved Medium Armor Plating Weapon Constructs Energy Gun Constructs Energy Cannon Subdweller Beam Cannon Ballistic Gun Constructs Ballistic Cannon Constructs Launcher Improved Grenade Launcher Special Weapon RU-N14's Throwing Claymores v3 Slashing Weapon Sigix Broadsword Piercing Weapon Vortex Lance Special Melee Weapon Chaos Jack Build | -11 -10 -10 -8 -8 -8 -6 -5 -4 -4 -4 -4 -3 -3 -3 -3 -2 -1 -1 ------- Run | Yrd Mat Sub Mat Sto Rec Fac Fac Fac Upp Upp War Pro Res Qua Sec Res Acc Com Slots Evolved 18 | . . . 4 . . 4 2 2 . . . . 2 . . 2 2 . Power . | . . . . . . . . . . . . . . . . . . . Propulsion 4 | . . . 2 . . 1 1 . . . . . . . . . . . Utility 11 | . . . 2 . . 3 . 2 . . . . 2 . . 2 . . Weapon 3 | . . . . . . . 1 . . . . . . . . . 2 . Parts Attached 139 | 6 3 15 10 13 4 8 23 8 8 5 6 3 6 2 5 3 3 8 Power 7 | 1 . 2 1 2 . . . . . . . . . . . . . 1 Engine 6 | 1 . 2 1 2 . . . . . . . . . . . . . . Core 1 | . . . . . . . . . . . . . . . . . . 1 Reactor . | . . . . . . . . . . . . . . . . . . . Propulsion 15 | 2 . 4 5 2 1 . 1 . . . . . . . . . . . Treads 11 | . . 3 5 2 1 . . . . . . . . . . . . . Leg 3 | 2 . . . . . . 1 . . . . . . . . . . . Wheel 1 | . . 1 . . . . . . . . . . . . . . . . Hover . | . . . . . . . . . . . . . . . . . . . Flight . | . . . . . . . . . . . . . . . . . . . Utility 89 | 1 3 4 1 6 2 8 21 7 8 5 5 3 6 1 2 3 . 3 Device 61 | . 1 4 . 4 1 6 15 4 6 4 4 2 6 . 1 . . 3 Storage 7 | 1 2 . 1 . . 1 1 . . . 1 . . . . . . . Processor 2 | . . . . . . 1 . . . . . 1 . . . . . . Hackware 4 | . . . . . . . . . . . . . . . 1 3 . . Protection 15 | . . . . 2 1 . 5 3 2 1 . . . 1 . . . . Artifact . | . . . . . . . . . . . . . . . . . . . Weapon 28 | 2 . 5 3 3 1 . 1 1 . . 1 . . 1 3 . 3 4 Energy Gun 1 | . . . . . . . . . . . . . . . . . . 1 Energy Cannon 5 | . . 2 1 . . . . . . . . . . . . . . 2 Ballistic Gun 6 | 2 . 1 . 3 . . . . . . . . . . . . . . Ballistic Cannon 4 | . . 2 1 . . . . . . . . . . . . . . 1 Launcher 5 | . . . 1 . 1 . 1 1 . . . . . . . . 1 . Special Weapon 5 | . . . . . . . . . . . . . . . 3 . 2 . Impact Weapon . | . . . . . . . . . . . . . . . . . . . Slashing Weapon 1 | . . . . . . . . . . . . . . 1 . . . . Piercing Weapon 1 | . . . . . . . . . . . 1 . . . . . . . Special Melee Weapon . | . . . . . . . . . . . . . . . . . . . Unidentified Prototypes 13 | . 1 . 1 . 1 . 1 . . . 2 . 2 1 3 . 1 . Parts Lost 62 | . . 4 7 2 . 5 10 6 6 . . . 3 . 1 . 5 13 Power 8 | . . 1 2 . . 1 . . 2 . . . . . . . 1 1 Propulsion 7 | . . 2 1 1 . 1 . . . . . . . . . . . 2 Utility 31 | . . . . 1 . 1 8 5 3 . . . 2 . 1 . 3 7 Weapon 16 | . . 1 4 . . 2 2 1 1 . . . 1 . . . 1 3 Highest Loss Streak 6 | . . 2 4 1 . 4 2 6 3 . . . 1 . 1 . 3 4 To Critical Strikes 2 | . . . . . . . . . . . . . . . . . . 2 Average Backups 16 | 4 8 10 18 18 15 12 14 19 18 19 22 24 23 23 22 18 16 12 Power 1 | 1 1 1 . . 3 2 1 1 . . . . . . . . . . Propulsion 1 | 2 4 2 4 4 1 . . . . . . . . . . . . . Utility 8 | . 1 2 4 2 3 4 9 13 14 15 16 17 16 15 15 13 13 11 Weapon 4 | . 1 4 7 9 5 3 2 3 2 2 5 5 6 6 5 3 1 . Tool/Special . | . . . . . . . . . . . . . . . . . . . Unused Backups 44 | . 1 7 5 . 12 2 2 . 3 1 6 . . . . . . 5 Power 7 | . . 2 . . 1 2 1 . 1 . . . . . . . . . Propulsion 10 | . . 2 2 . 4 . . . 1 . 1 . . . . . . . Utility 11 | . 1 . 2 . . . 1 . . 1 3 . . . . . . 3 Weapon 15 | . . 3 1 . 7 . . . 1 . 2 . . . . . . 1 Tool/Special 1 | . . . . . . . . . . . . . . . . . . 1 Average Slot Usage (%) 69 | . 85 90 64 87 82 66 61 56 61 63 60 56 55 64 61 64 65 49 Engine 4 | . 14 11 6 6 7 5 3 5 2 . . . . . . . . . Reactor 1 | . . . . . . . . . 1 5 5 5 4 4 4 4 3 . Treads 6 | . . 17 20 23 15 . 1 5 3 . . . . . . . . . Leg 2 | . 28 . . . . 5 1 . . 5 . 1 4 4 4 4 3 3 Device 23 | . . 19 11 20 21 28 27 26 26 25 25 25 31 36 34 29 23 15 Storage 6 | . 14 11 8 8 8 6 5 5 5 5 5 5 4 4 4 4 3 3 Hackware 1 | . . . . . . . . . . . . . . . 1 15 15 15 Protection 4 | . . . . 4 3 1 3 8 12 13 10 6 . 3 4 4 3 . Energy Gun 2 | . . 3 4 . 7 3 4 . . . . 1 2 . . . . . Energy Cannon 2 | . . 7 3 . 1 3 1 . 3 10 8 2 . . . . . . Ballistic Gun 5 | . 28 9 . 23 14 5 2 . . . . . 1 4 2 . . . Ballistic Cannon 2 | . . 5 4 . . 3 4 4 4 . . 4 4 1 . . . . Peak Build Rating 227 | 6 20 43 50 48 75 82 121 125 148 152 157 163 187 207 207 211 227 175 Average Rating 94 | 3 6 25 40 42 58 74 101 118 121 149 150 157 167 201 200 205 209 149 On Entrance 108 | . 6 20 42 25 46 67 75 115 111 148 150 152 163 187 207 172 211 157 Avg Prop Armor Cover (%) 6 | . . 2 6 . . . . . . . . . . . . . . . Naked Turns . | . . . . . . . . . . . . . . . . . . . Heaviest Build 165 | 14 20 54 59 72 69 66 102 110 121 152 157 162 165 158 158 147 165 122 Greatest Support 306 | 20 20 40 107 76 70 94 168 112 147 180 231 306 234 234 234 234 234 234 Greatest Overweight (x) 2 | 2 . 2 1 1 1 1 1 . 1 . . . . . . . . . Average Overweight (x) . | . . . . . . . . . . . . . . . . . . . Largest Inventory Capacity 25 | 8 15 15 20 20 20 20 20 20 20 20 25 25 25 25 25 25 25 25 Average Capacity 19 | 7 8 13 18 20 20 17 17 20 20 20 23 25 25 25 25 25 25 25 Most Carried 25 | 7 10 15 20 20 20 16 20 20 20 20 25 25 25 25 25 21 17 15 Average Carried 16 | 5 8 11 18 18 15 12 14 19 18 19 23 24 23 24 24 18 15 12 Final Capacity 25 | 8 10 15 20 20 20 15 20 20 20 20 25 25 25 25 25 25 25 25 Final Carried 25 | 6 10 15 20 20 14 11 20 20 19 20 24 25 24 25 22 18 15 12 Scrap Engine Consumption 161 | . . . . . 30 32 45 5 13 4 13 9 7 3 . . . . Constructs Created 14 | . . . . . 5 2 2 . 4 . . 1 . . . . . . Constructs Modified 157 | . . . . . 20 10 47 2 34 10 13 18 2 1 . . . . Transmogrified Parts 6 | . . 2 4 . . . . . . . . . . . . . . . Integrity Recovered 105 | . . 27 78 . . . . . . . . . . . . . . . Class Distribution -------------------- 39% | Construct 20% | Mutant 14% | Scavenger-Construct 6% | Wizard-Mutant 5% | Tank 4% | Scavenger-Mutant 3% | Commander-Construct Dominant Class ---------------- Mutant | -10/Materials Mutant | -10/Subcaves Mutant | -8/Materials Scavenger-Tank | -8/Storage Tank | -8/Recycling Construct | -6/Factory Scavenger-Construct | -5/Factory Scavenger-Construct | -4/Factory Construct | -4/Upper Caves Construct | -4/Upper Caves Construct | -4/Warlord Construct | -3/Proximity Caves Construct | -3/Research Construct | -3/Quarantine Construct | -3/Section 7 Wizard-Mutant | -2/Research Wizard-Mutant | -1/Access Wizard-Mutant | -1/Command Resources | -11 -10 -10 -8 -8 -8 -6 -5 -4 -4 -4 -4 -3 -3 -3 -3 -2 -1 -1 ----------- Run | Yrd Mat Sub Mat Sto Rec Fac Fac Fac Upp Upp War Pro Res Qua Sec Res Acc Com Matter Collected 9978 | 197 73 449 311 367 880 249 2058 554 1606 309 790 1228 198 48 98 . 474 89 Remotely . | . . . . . . . . . . . . . . . . . . . Salvage Created 14767 | . 194 348 778 417 636 1305 5075 1343 939 198 70 791 761 175 743 . 269 725 Parts 656 | . 8 23 57 32 34 56 191 65 44 10 4 33 30 1 32 . 7 29 Haulers Intercepted 13 | . . . 2 1 . 2 3 3 . . . . 2 . . . . . Recyclers Shooed 14 | . . . . . . 1 9 4 . . . . . . . . . . Parts Field Recycled . | . . . . . . . . . . . . . . . . . . . Retrieved Matter . | . . . . . . . . . . . . . . . . . . . Parts Self-Destructed 88 | . . 27 . . . . . . 26 4 . 31 . . . . . . Prevented 7 | . . . . . . . . . . 7 . . . . . . . . Parts Restored . | . . . . . . . . . . . . . . . . . . . Kills | -11 -10 -10 -8 -8 -8 -6 -5 -4 -4 -4 -4 -3 -3 -3 -3 -2 -1 -1 ------- Run | Yrd Mat Sub Mat Sto Rec Fac Fac Fac Upp Upp War Pro Res Qua Sec Res Acc Com Combat Hostiles Destroyed 190 | . 4 8 21 7 13 15 46 8 17 3 . 12 8 . 12 . 3 13 Melee 14 | . . . . . . . . . 1 . . . 4 . 1 . . 8 Guns 47 | . 4 2 5 7 12 6 10 . . . . 1 . . . . . . Cannons 84 | . . 6 16 . . 3 31 4 11 2 . 9 1 . 1 . . . AOE 26 | . . . . . . 6 4 1 5 . . . . . 8 . 2 . Classes Destroyed 27 | . 2 3 6 1 2 3 3 1 2 . . 1 . . 2 . . 1 Worker 14 | . . . 1 1 . . 3 5 . . . . . . 3 . . 1 Builder 11 | . . . 2 . 1 2 3 1 . . . . . . 2 . . . Tunneler 2 | . . . . . . . . 2 . . . . . . . . . . Hauler 13 | . . . 2 1 . 2 3 3 . . . . 2 . . . . . Recycler 21 | . . . 1 1 . 2 12 3 . . . . 1 . . . 1 . Mechanic 1 | . . . . . . 1 . . . . . . . . . . . . Operator 8 | . . . . 1 . . . . . . . . . 3 3 . . 1 Watcher 18 | . 2 . 3 . . 2 4 . . . . . 2 2 2 . . 1 Swarmer 24 | . . 1 8 . . . . . 3 1 . 3 3 . 1 . . 4 Cutter 1 | . . . . . . . . . . . . . . . 1 . . . Saboteur 5 | . . . . . . 1 . 1 . . . . . . 2 . 1 . Grunt 56 | . 4 3 10 1 . 3 16 3 7 . . . 1 . 3 . 2 3 Brawler 1 | . . . . . . 1 . . . . . . . . . . . . Duelist 11 | . . . 1 . 3 1 3 1 . . . . . . 2 . . . Protector 4 | . . . . . 1 . . . . . . 3 . . . . . . Researcher 5 | . . . . . . . . . . . . . . . 5 . . . Sentry 22 | . . 1 1 4 1 3 5 . . 1 . 3 1 . . . . 2 Demolisher 3 | . . . . . . . . . . . . 3 . . . . . . Specialist 4 | . . . . . . . 3 . . . . . . . . . . 1 Hunter 20 | . . . 1 2 . 1 10 2 2 . . . . . 2 . . . Programmer 19 | . . . . . 2 3 5 1 4 . . . 3 . . . . 1 Heavy 2 | . . . . . . . 1 . . . . . . . . . . 1 Behemoth 2 | . . . . . . . 1 . . 1 . . . . . . . . S7 Guard 1 | . . . . . . . . . . . . . . . 1 . . . Investigator 1 | . . . . . . . . . . . . . . . . . 1 . Striker 1 | . . . . . . . . . . . . . . . . . . 1 Subdweller 10 | . . 3 . . 7 . . . . . . . . . . . . . Decomposer 1 | . . . . . . . . . 1 . . . . . . . . . Samaritan 1 | . . . . . . . . . 1 . . . . . . . . . Thug 2 | . . . . . . 1 . . . . 1 . . . . . . . Guerrilla 4 | . . . . . . 2 2 . . . . . . . . . . . Mutant 1 | . . . . . . . . . 1 . . . . . . . . . Best Kill Streak 18 | . 2 3 13 5 5 6 10 10 7 1 . 4 4 3 18 . 3 3 Combat Bots Only 11 | . 2 3 10 4 4 3 5 6 7 1 . 4 3 . 11 . 2 3 Max Kills in Single Turn 5 | . 1 1 2 2 2 5 2 4 2 1 1 1 1 1 4 . 2 2 Gunslinging . | . . . . . . . . . . . . . . . . . . . Exploded 3 | . . . . . . 2 2 1 2 . . . . . 3 . 1 . Melee 1 | . . . . . . . . . 1 . . . 1 . 1 . . 1 Uniques/NPCs Destroyed . | . . . . . . . . . . . . . . . . . . . Combat | -11 -10 -10 -8 -8 -8 -6 -5 -4 -4 -4 -4 -3 -3 -3 -3 -2 -1 -1 -------- Run | Yrd Mat Sub Mat Sto Rec Fac Fac Fac Upp Upp War Pro Res Qua Sec Res Acc Com Hostile Shots Fired 2189 | . 9 64 112 22 22 186 368 204 159 29 8 85 117 36 230 15 229 294 Missed 853 | . 3 13 34 10 5 82 121 64 45 7 1 36 68 23 103 9 94 135 Hits 1336 | . 6 51 78 12 17 104 247 140 114 22 7 49 49 13 127 6 135 159 Melee 25 | . . . . . 1 16 1 2 . . . . . . 1 . 4 . Projectile 1311 | . 6 51 78 12 16 88 246 138 114 22 7 49 49 13 126 6 131 159 AOE 11 | . . . . . . . . . . . . 8 1 . 2 . . . Critical Strikes 48 | . . 4 4 . 2 7 4 7 2 . . 1 1 . 4 . 7 5 Actively Blocked 9 | . . . . . . . . 7 2 . . . . . . . . . Part Disruptions 1 | . . . . . . . . . . . . . . . . . 1 . Damage Taken 25091 | . 68 766 1365 212 313 1256 4576 2827 2302 424 385 1346 1078 151 1676 88 2324 3934 Core 2465 | . 33 146 299 17 30 206 355 241 150 18 42 82 123 9 129 . 171 414 Absorbed by Shields 1188 | . . . . . . 163 165 . . . . . 31 41 494 27 258 9 Redirected to Shielding 68 | . . . . . . . . . . 55 13 . . . . . . . Ignored by Resistances 1567 | . . 34 . . . . 98 . . . . . . 93 816 39 487 . Regen/Repaired (Parts) 7249 | . . . . . 5 390 2688 133 2706 51 347 217 . 101 265 30 316 . Core Remaining (%) 79 | 100 . 86 . . 66 80 70 . . . . 60 . . 82 100 . 67 Volleys Fired 604 | . 19 55 70 17 21 52 175 35 65 15 14 40 3 2 7 . 7 7 Largest 3 | . 2 2 2 3 3 3 3 1 1 1 1 2 2 1 1 . 2 2 Hottest 315 | . 40 113 126 84 278 278 315 178 178 165 123 172 154 61 . . . 207 Shots Fired 916 | . 38 81 87 51 55 113 252 35 65 15 14 77 6 2 7 . 8 10 Gun 375 | . 38 32 25 51 51 62 97 . . . . 14 2 1 . . . 2 Cannon 513 | . . 49 62 . 3 51 152 30 62 15 14 63 4 1 . . . 7 Launcher 13 | . . . . . 1 . 3 5 3 . . . . . . . 1 . Special 15 | . . . . . . . . . . . . . . . 7 . 7 1 Kinetic 617 | . 38 48 53 51 42 77 158 9 61 5 . 69 3 1 . . . 2 Thermal 216 | . . 33 14 . 12 29 73 21 1 3 13 8 2 . . . . 7 Explosive 22 | . . . . . 1 . 3 . 3 . . . . . 7 . 7 1 Electromagnetic 60 | . . . 20 . . 7 18 5 . 7 1 . 1 1 . . . . Robot Hit Streak 25 | . 5 25 10 9 10 6 17 7 7 5 10 11 3 . 2 . 3 2 Robot Miss Streak 14 | . 4 1 14 6 5 4 6 1 5 3 1 3 1 . 2 . 1 4 Penetration Max 2 | . . . . . . . 2 . . . . 1 . . . . . . Secondary Targets 5 | . 1 1 . . 1 . 2 . . . . . . . . . . . Max Gunslinging Chain 1 | . 1 1 . . 1 . 1 . . . . . . . . . . . Shots Hit Robots 635 | . 21 48 74 41 37 56 201 20 36 10 9 45 7 . 11 . 4 15 Core Hits 575 | . 8 11 87 55 43 39 175 24 26 2 1 30 9 1 36 . 17 11 Critical Kills 4 | . . . . . . . 3 . 1 . . . . . . . . . Critical Parts Destroyed 6 | . . . . . . . 4 . 2 . . . . . . . . . Critical Strikes 16 | . . . 1 . . . 7 . 3 . . 3 . . . . . 2 Burn 1 | . . . 1 . . . . . . . . . . . . . . . Destroy 10 | . . . . . . . 7 . 3 . . . . . . . . . Blast 3 | . . . . . . . . . . . . 3 . . . . . . Sunder 2 | . . . . . . . . . . . . . . . . . . 2 Melee Attacks 58 | . . . . . . . . . . . . . 6 4 18 1 6 23 Impact . | . . . . . . . . . . . . . . . . . . . Slashing 26 | . . . . . . . . . . . . . . 4 18 1 3 . Piercing 6 | . . . . . . . . . . . . . 6 . . . . . Entropic 26 | . . . . . . . . . . . . . . . . . 3 23 Sneak Attacks 7 | . . . . . . . . . . . . . 1 . 3 . . 3 Combat Hostiles 2 | . . . . . . . . . . . . . . . . . . 2 Follow-up Attacks . | . . . . . . . . . . . . . . . . . . . Damage Inflicted 42179 | 1 295 933 1498 684 789 3857 8679 3411 3118 561 552 4700 2056 587 5970 24 1325 3139 Guns 5745 | . 295 320 319 671 730 1036 2199 . . . . 145 . . . . . 30 Cannons 14982 | . . 613 992 . 48 846 5265 1240 2271 561 552 2337 90 . . . . 167 Explosions 9731 | . . . 82 . . 1854 1151 2039 734 . . . . . 2744 . 1006 121 Melee 2410 | . . . . . . . . . . . . . 14 . 1097 . . 1299 Ramming 8974 | 1 . . 105 13 11 121 64 132 113 . . 2218 1952 587 1989 24 122 1522 Kinetic 14854 | . 295 414 890 671 556 1308 5238 362 2271 246 . 2422 65 . . . . 116 Thermal 7964 | . . 519 229 . 222 2305 2577 934 315 170 552 60 . . . . . 81 Explosive 5780 | . . . . . . . 592 898 419 . . . . . 2744 . 1006 121 Electromagnetic 1860 | . . . 274 . . 123 208 1085 . 145 . . 25 . . . . . Impact . | . . . . . . . . . . . . . . . . . . . Slashing 1434 | . . . . . . . . . . . . . . . 1237 . 197 . Piercing 14 | . . . . . . . . . . . . . 14 . . . . . Entropic 1299 | . . . . . . . . . . . . . . . . . . 1299 Highest Corruption 49 | . . 18 2 . 19 22 12 . 5 5 . . 8 18 37 1 28 49 Average Corruption 14 | . . 4 1 . 11 19 10 . 4 5 . . 2 7 31 1 22 34 Corruption Purged . | . . . . . . . . . . . . . . . . . . . Corruption Blocked . | . . . . . . . . . . . . . . . . . . . Effects 283 | . . 7 3 . 3 60 61 . 23 6 . . 5 6 33 . 28 48 Message Errors 56 | . . 2 1 . 1 16 14 . 5 1 . . 1 . 6 . 4 5 Matter Fused 66 | . . 4 . . 2 15 8 . 8 1 . . 2 2 8 . 5 11 Heat Flow Errors 34 | . . 1 1 . . 13 8 . 1 3 . . . . . . 2 5 Energy Discharges 27 | . . . . . . 7 11 . 4 . . . . 1 2 . . 2 Parts Rejected 6 | . . . . . . 2 . . . . . . 1 . 1 . 1 1 Parts Fused 2 | . . . . . . . . . . . . . . 1 . . . 1 Data Loss (minor) 23 | . . . . . . 2 10 . 3 . . . 1 1 2 . 1 3 Data Loss (major) 10 | . . . . . . 1 3 . 1 1 . . . . 2 . 1 1 Misfires 1 | . . . 1 . . . . . . . . . . . . . . . Alerts 7 | . . . . . . 1 2 . 1 . . . . . 1 . 1 1 Misdirections 43 | . . . . . . . 1 . . . . . . 1 11 . 13 17 Weapon Failures 8 | . . . . . . 3 4 . . . . . . . . . . 1 Overload Shots . | . . . . . . . . . . . . . . . . . . . Overflow Damage 2871 | . . 9 . . . 162 134 289 164 . . 177 496 196 792 . 15 437 Projectiles 465 | . . 9 . . . 10 103 149 161 . . 25 . . 3 . . 5 Explosions 390 | . . . . . . 149 31 140 3 . . . . . 59 . 3 5 Melee 2016 | . . . . . . 3 . . . . . 152 496 196 730 . 12 427 Knockbacks 161 | . . 2 29 . . 2 56 3 17 . . 25 8 2 6 . . 11 Impact 43 | . . . 1 . . 1 . . 2 . . 14 8 2 6 . . 9 Kinetic 109 | . . 2 28 . . 1 51 2 15 . . 9 . . . . . 1 Secondary 9 | . . . . . . . 5 1 . . . 2 . . . . . 1 Self-Inflicted Damage 382 | . . . 34 . 8 145 68 38 89 . . . . . . . . . Shots 9 | . . . 1 . 1 2 1 1 3 . . . . . . . . . Rammed 25 | . . . 8 3 2 1 2 7 2 . . . . . . . . . Targets Rammed 209 | 3 . . 10 3 2 11 7 7 3 . . 44 35 10 35 1 5 33 Kicked 181 | 3 . . . . . 10 5 . . . . 44 35 10 35 1 5 33 Crushed 3 | . . . 2 . . . . . 1 . . . . . . . . . Highest Temperature 508 | . . 126 290 1 305 508 411 237 340 27 . . . . . . 109 338 Average Temperature 90 | . . 21 56 1 123 104 94 81 117 21 . . . . . . 90 98 Received Heat Transfer 3089 | . 36 198 423 27 39 113 812 216 126 27 27 156 68 46 348 21 271 135 Effects 14 | . . . . . . 3 7 . 4 . . . . . . . . . Shutdowns 1 | . . . . . . 1 . . . . . . . . . . . . Energy Bleed 4 | . . . . . . 1 1 . 2 . . . . . . . . . Interference 8 | . . . . . . . 6 . 2 . . . . . . . . . Short Circuit 1 | . . . . . . 1 . . . . . . . . . . . . Siege Activations . | . . . . . . . . . . . . . . . . . . . Martial Activations . | . . . . . . . . . . . . . . . . . . . Shielding Activations . | . . . . . . . . . . . . . . . . . . . Robots Disrupted 2 | . . . 1 . . . 1 . . . . . . . . . . . Combat Hostiles 1 | . . . 1 . . . . . . . . . . . . . . . Robots Corrupted 30 | . . . . . . . . 3 . 1 . 4 6 4 6 . 1 5 Combat Hostiles 17 | . . . . . . . . 3 . 1 . 2 3 . 2 . 1 5 Parts Fried 39 | . . . . . . 1 . 5 . . . 4 6 10 10 . 1 2 Impact Corruptions 64 | . . . . . . 1 . . . . . 8 18 8 16 . 1 12 Robots Melted 5 | . . . . . 1 . 4 . . . . . . . . . . . Combat Hostiles 2 | . . . . . 1 . 1 . . . . . . . . . . . Parts Melted 17 | . . . . . 2 . 15 . . . . . . . . . . . Heat Transferred 7442 | . . 703 337 . 349 2146 3172 50 400 100 . 111 . . . . . 74 Parts Sabotaged 3 | . . . . . . 3 . . . . . . . . . . . . Parts Stolen . | . . . . . . . . . . . . . . . . . . . Parts Stripped . | . . . . . . . . . . . . . . . . . . . Power Chain Reactions 5 | . . . 1 . . . 4 . . . . . . . . . . . Alert | -11 -10 -10 -8 -8 -8 -6 -5 -4 -4 -4 -4 -3 -3 -3 -3 -2 -1 -1 ------- Run | Yrd Mat Sub Mat Sto Rec Fac Fac Fac Upp Upp War Pro Res Qua Sec Res Acc Com Maximum Alert Level 5 | . . . 1 . 2 4 5 4 . . . . 1 1 5 5 5 4 Low Security (%) 37 | 100 100 . 73 100 91 . . . . . . . 69 . 13 . . . Level 1 13 | . . . 26 . 2 13 16 . . . . . 30 100 38 . . . Level 2 21 | . . . . . 5 66 42 . . . . . . . 24 . . . Level 3 8 | . . . . . . 18 11 70 . . . . . . . . . . Level 4 12 | . . . . . . 1 20 29 . . . . . . . 9 4 100 Level 5 1 | . . . . . . . 8 . . . . . . . . . . . High Security . | . . . . . . . . . . . . . . . . . . . Max Security 4 | . . . . . . . . . . . . . . . 23 90 95 . Sterilizations 1 | . . . 1 . . . . . . . . . . . . . . . Peak Influence 2354 | . 80 . 283 95 419 1178 1653 1336 . . . . 362 309 2354 1660 2302 1567 Initial 1472 | . . . . 8 13 349 571 805 . . . . 76 203 168 1312 1100 1472 Average 536 | . 25 . 97 43 68 568 805 1022 . . . . 142 229 740 1596 1792 1498 Influence Increases 10672 | . 179 136 578 228 694 1595 2020 835 370 177 . 322 436 196 1519 126 830 431 Destroy 0b10 Robot/C 4280 | . 80 120 420 140 120 300 1080 160 320 120 . 240 160 . 440 20 300 260 Destroy 0b10 Robot/NC 550 | . 10 . 45 20 20 45 125 70 10 . . 60 25 25 70 . 10 15 Destroy Leader 694 | . 24 . 60 62 . 98 184 36 40 20 . . 48 4 26 . 50 42 Allied During Kill 341 | . . 1 . 1 5 . 77 . . 37 . 22 . . 114 13 71 . Successful Hack 184 | . 35 . . 5 33 14 25 12 . . . . . . . . 18 42 Select Force Hacks 80 | . 30 . . . . . . 50 . . . . . . . . . . Disable Machine 870 | . . . . . . 225 75 210 . . . . 15 60 150 30 90 15 Anti-Garrison Action 200 | . . . . . . . 200 . . . . . . . . . . . Destroy Structure 984 | . . . 8 . 16 131 194 132 . . . . 8 2 112 48 276 57 Advance Influence 200 | . . . . . . 200 . . . . . . . . . . . . Partial Spotted 90 | . . . . . . . . . . . . . 15 15 30 15 15 . Lose Combat Pursuer 705 | . . 15 45 . . 30 60 165 . . . . 165 90 135 . . . Miscellaneous 1494 | . . . . . 500 552 . . . . . . . . 442 . . . Influence Decreases 11013 | . 179 136 558 213 372 784 1543 1158 1036 351 482 208 188 259 421 1082 777 1266 Entered New Map 5623 | . . . . 12 22 208 597 840 490 125 482 . 38 159 131 1022 667 830 Time Decay 4020 | . 179 126 338 191 260 526 636 238 486 206 . 168 120 100 160 . . 286 Search Patrol Dispatched 100 | . . . . . . . . . . . . . . . 100 . . . Lost Part 580 | . . 10 70 10 . 50 100 60 60 . . . 30 . 10 . 50 130 Lost Ally 390 | . . . . . 90 . 60 20 . 20 . 40 . . 20 60 60 20 Purge Threat 300 | . . . 150 . . . 150 . . . . . . . . . . . Squads Dispatched 108 | . 3 . 4 5 1 5 16 7 . . . . 3 4 19 1 26 14 Investigation 11 | . 1 . 1 . . . 1 1 . . . . . 2 1 1 2 1 Extermination 15 | . . . . . . 2 3 1 . . . . 2 2 1 . . 4 Reinforcement 37 | . 2 . 1 3 . 1 5 4 . . . . 1 . 10 . 2 8 Assault 41 | . . . 2 2 1 2 6 1 . . . . . . 6 . 20 1 Garrison 2 | . . . . . . . 1 . . . . . . . . . 1 . Intercept 2 | . . . . . . . . . . . . . . . 1 . 1 . Searches Triggered 1 | . . . . . . . . . . . . . . . 1 . . . Construction Impeded 7 | . . . . . . 1 3 3 . . . . . . . . . . Haulers Reinforced 2 | . . . . . . . 1 . . . . . 1 . . . . . Active Scanning Responses . | . . . . . . . . . . . . . . . . . . . Cargo Convoy Interrupts 2 | . . . . . . 1 1 . . . . . . . . . . . Stealth | -11 -10 -10 -8 -8 -8 -6 -5 -4 -4 -4 -4 -3 -3 -3 -3 -2 -1 -1 --------- Run | Yrd Mat Sub Mat Sto Rec Fac Fac Fac Upp Upp War Pro Res Qua Sec Res Acc Com Distress Signals 46 | . 2 . 4 1 1 1 . 5 . . . 9 2 . 2 2 8 9 Communications Jammed . | . . . . . . . . . . . . . . . . . . . Distress Signals . | . . . . . . . . . . . . . . . . . . . Times Spotted 761 | . 10 17 36 10 19 31 94 21 18 6 10 24 32 15 137 27 137 117 Peak Tracking Total 24 | . 3 6 7 4 5 12 12 13 6 4 6 4 14 9 24 10 17 10 Tactical Retreats 20 | . . 1 2 . . 1 4 4 . . . . 4 1 3 . . . Traps | -11 -10 -10 -8 -8 -8 -6 -5 -4 -4 -4 -4 -3 -3 -3 -3 -2 -1 -1 ------- Run | Yrd Mat Sub Mat Sto Rec Fac Fac Fac Upp Upp War Pro Res Qua Sec Res Acc Com Traps Triggered 32 | . . 1 2 1 . 4 . 3 . . . . 3 3 1 1 3 10 Indirectly . | . . . . . . . . . . . . . . . . . . . Trap Hack Attempts . | . . . . . . . . . . . . . . . . . . . Triggered . | . . . . . . . . . . . . . . . . . . . Disarmed . | . . . . . . . . . . . . . . . . . . . Reprogrammed . | . . . . . . . . . . . . . . . . . . . Reused . | . . . . . . . . . . . . . . . . . . . Traps Extracted . | . . . . . . . . . . . . . . . . . . . Installed . | . . . . . . . . . . . . . . . . . . . Triggered . | . . . . . . . . . . . . . . . . . . . Most Traps Carried 2 | . . 2 . . . . . . . . . . . . . . . . Machines | -11 -10 -10 -8 -8 -8 -6 -5 -4 -4 -4 -4 -3 -3 -3 -3 -2 -1 -1 ---------- Run | Yrd Mat Sub Mat Sto Rec Fac Fac Fac Upp Upp War Pro Res Qua Sec Res Acc Com Machines Disabled 73 | . . 1 . . . 15 5 14 5 . 2 5 1 4 12 2 6 1 Max in Single Turn 8 | . . 1 . . . 4 2 8 4 . 1 1 1 1 1 . 1 1 Garrison Access 5 | . . . 1 . . . 3 1 . . . . . . . . . . Energy Cycler 1 | . . . . . . . . . . . . . . . . . 1 . Machines Repaired . | . . . . . . . . . . . . . . . . . . . Machines Dismantled . | . . . . . . . . . . . . . . . . . . . Machines Sabotaged . | . . . . . . . . . . . . . . . . . . . Overloaded Fab Kills . | . . . . . . . . . . . . . . . . . . . Hacking | -11 -10 -10 -8 -8 -8 -6 -5 -4 -4 -4 -4 -3 -3 -3 -3 -2 -1 -1 --------- Run | Yrd Mat Sub Mat Sto Rec Fac Fac Fac Upp Upp War Pro Res Qua Sec Res Acc Com Machines Accessed 66 | . 6 1 1 3 11 8 10 3 1 . 3 . 2 5 4 1 2 5 Terminals 37 | . 5 . 1 3 6 2 4 . 1 . . . 1 4 3 1 1 5 Fabricators 3 | . . . . . . 1 1 1 . . . . . . . . . . Repair Stations 3 | . . . . . . 1 1 . . . . . . 1 . . . . Recycling Units 10 | . 1 . . . 4 4 1 . . . . . . . . . . . Scanalyzers 1 | . . . . . . . . 1 . . . . . . . . . . Garrison Access 7 | . . . . . . . 3 1 . . . . 1 . 1 . 1 . Total Hacks 180 | . 22 1 4 13 41 12 28 8 5 . 7 . 2 6 6 3 11 11 Successful 90 | . 15 1 1 4 28 2 14 3 5 . 7 . . 2 1 . 2 5 Failed 90 | . 7 . 3 9 13 10 14 5 . . . . 2 4 5 3 9 6 Catastrophic 21 | . . . . 2 2 4 2 1 . . . . 1 1 3 1 1 3 Database Lockouts . | . . . . . . . . . . . . . . . . . . . Manual 65 | . 13 . . 6 20 . 11 1 . . . . . 3 1 . 8 2 Terminals 115 | . 20 . 4 13 22 2 18 . 5 . . . 1 5 5 3 6 11 Fabricators 4 | . . . . . . 2 1 1 . . . . . . . . . . Repair Stations 4 | . . . . . . 1 2 . . . . . . 1 . . . . Recycling Units 23 | . 2 . . . 12 7 2 . . . . . . . . . . . Scanalyzers 3 | . . . . . . . . 3 . . . . . . . . . . Garrison Access 16 | . . . . . . . 5 4 . . . . 1 . 1 . 5 . Terminal Hacks 59 | . 11 1 1 3 18 . 6 . 5 . 7 . . 1 1 . 1 4 Record 11 | . . . . . 5 . . . 5 . . . . 1 . . . . Prototype ID Bank 21 | . 8 . . 1 7 . . . . . 5 . . . . . . . Open Door 2 | . . . . . . . . . . . 2 . . . . . . . Branch Access Points 1 | . . . . . . . 1 . . . . . . . . . . . Machine Index 1 | . . . . . . . . . . . . . . . . . . 1 Recycling Unit Index 1 | . . . . . 1 . . . . . . . . . . . . . Alert Level 7 | . 1 . . 1 2 . 2 . . . . . . . . . . 1 Unreport Threat 2 | . . . 1 . . . 1 . . . . . . . . . . . Locate Traps 6 | . 2 . . 1 . . 2 . . . . . . . . . 1 . Zone Layout 1 | . . . . . 1 . . . . . . . . . . . . . Proto ID Catalog 1 | . . 1 . . . . . . . . . . . . . . . . Activate Exoskeleton 1 | . . . . . . . . . . . . . . . 1 . . . Disengage Seal 2 | . . . . . . . . . . . . . . . . . . 2 Release Object 2 | . . . . . 2 . . . . . . . . . . . . . Fabricator Hacks 2 | . . . . . . 1 1 . . . . . . . . . . . Build 2 | . . . . . . 1 1 . . . . . . . . . . . Repair Station Hacks 2 | . . . . . . . 2 . . . . . . . . . . . Scan Component 1 | . . . . . . . 1 . . . . . . . . . . . Repair 1 | . . . . . . . 1 . . . . . . . . . . . Recycling Unit Hacks 6 | . 1 . . . 4 1 . . . . . . . . . . . . Retrieve Components 6 | . 1 . . . 4 1 . . . . . . . . . . . . Scanalyzer 1 | . . . . . . . . 1 . . . . . . . . . . Retrieve Study 1 | . . . . . . . . 1 . . . . . . . . . . Garrison Access Hacks 3 | . . . . . . . 2 1 . . . . . . . . . . Seal Access 3 | . . . . . . . 2 1 . . . . . . . . . . Unauthorized Hacks 17 | . 3 . . 1 6 . 3 1 . . . . . 1 . . 1 1 Terminals 9 | . 2 . . 1 2 . 2 . . . . . . . . . 1 1 Botnet 9 | . 2 . . 1 2 . 2 . . . . . . . . . 1 1 Fabricators 1 | . . . . . . . . 1 . . . . . . . . . . Overload 1 | . . . . . . . . 1 . . . . . . . . . . Repair Stations 1 | . . . . . . . . . . . . . . 1 . . . . Patch 1 | . . . . . . . . . . . . . . 1 . . . . Recycling Units 5 | . 1 . . . 4 . . . . . . . . . . . . . Reject 3 | . . . . . 3 . . . . . . . . . . . . . Mask 1 | . . . . . 1 . . . . . . . . . . . . . Tunnel 1 | . 1 . . . . . . . . . . . . . . . . . Scanalyzers . | . . . . . . . . . . . . . . . . . . . Garrison Access 1 | . . . . . . . 1 . . . . . . . . . . . Jam 1 | . . . . . . . 1 . . . . . . . . . . . Data Cores Recovered 3 | . . . . . . . . . . . . . . 2 1 . . . Used . | . . . . . . . . . . . . . . . . . . . Hacking Detections 49 | . 4 . 1 3 9 7 6 2 1 . . . 2 4 3 1 2 4 Full Trace Events 10 | . . . 1 1 4 . . . 1 . . . . . . 1 2 . Feedback Events 1 | . . . . . . . . . . . . . . . . . 1 . Corruption 1 | . . . . . . . . . . . . . . . . . 1 . Feedback Blocked . | . . . . . . . . . . . . . . . . . . . Robot Schematics Acquired 2 | . . . . . . . . . . . . . . . 2 . . . Robots Built 3 | . . . . . . . 3 . . . . . . . . . . . Authchips . | . . . . . . . . . . . . . . . . . . . Time 152 | . . . . . . . 152 . . . . . . . . . . . Total Robot Build Rating 15 | . . . . . . . 15 . . . . . . . . . . . Part Schematics Acquired 1 | . . . . . . . . . . . . . . . 1 . . . Parts Built 2 | . . . . . . 2 . . . . . . . . . . . . Authchips . | . . . . . . . . . . . . . . . . . . . Time 47 | . . . . . . 47 . . . . . . . . . . . . Total Part Build Rating 10 | . . . . . . 10 . . . . . . . . . . . . Part Studies Acquired 1 | . . . . . . . . 1 . . . . . . . . . . Parts Repaired 1 | . . . . . . . 1 . . . . . . . . . . . Time 26 | . . . . . . . 26 . . . . . . . . . . . Parts Recycled . | . . . . . . . . . . . . . . . . . . . Recycled Matter . | . . . . . . . . . . . . . . . . . . . Retrieved Matter . | . . . . . . . . . . . . . . . . . . . Retrieved Components 20 | . 1 . . . 10 9 . . . . . . . . . . . . Parts Scanalyzed . | . . . . . . . . . . . . . . . . . . . Part Schematics Acquired . | . . . . . . . . . . . . . . . . . . . Parts Damaged . | . . . . . . . . . . . . . . . . . . . Bothacking | -11 -10 -10 -8 -8 -8 -6 -5 -4 -4 -4 -4 -3 -3 -3 -3 -2 -1 -1 ------------ Run | Yrd Mat Sub Mat Sto Rec Fac Fac Fac Upp Upp War Pro Res Qua Sec Res Acc Com Used RIF Installer . | . . . . . . . . . . . . . . . . . . . Robots Hacked . | . . . . . . . . . . . . . . . . . . . Non-combat . | . . . . . . . . . . . . . . . . . . . Combat . | . . . . . . . . . . . . . . . . . . . Robot Hacks Applied . | . . . . . . . . . . . . . . . . . . . Relay Couplers Released 3 | . . . 3 . . . . . . . . . . . . . . . Machine Destruction 3 | . . . 3 . . . . . . . . . . . . . . . Fabnet Peak Effective % . | . . . . . . . . . . . . . . . . . . . Robots Rewired 13 | . . . . . 8 . . . 3 . . 2 . . . . . . Allies Hacked . | . . . . . . . . . . . . . . . . . . . Hacks Repelled . | . . . . . . . . . . . . . . . . . . . Allies | -11 -10 -10 -8 -8 -8 -6 -5 -4 -4 -4 -4 -3 -3 -3 -3 -2 -1 -1 -------- Run | Yrd Mat Sub Mat Sto Rec Fac Fac Fac Upp Upp War Pro Res Qua Sec Res Acc Com Total Allies 31 | . . 1 . 2 8 . 3 1 3 . 2 2 . . 3 3 3 . Largest Group 8 | . . 1 . 2 8 . 3 1 3 3 3 2 . . 3 4 4 1 Highest-Rated Group 1296 | . . 90 . 62 134 . 87 79 90 90 287 92 . . 1296 1294 1269 1204 Highest-Rated Ally 1204 | . . 90 . 31 34 . 29 79 30 30 144 49 . . 1204 1204 1204 1204 Total Orders . | . . . . . . . . . . . . . . . . . . . Ally Attacks 225 | . . 3 . . 26 . 71 6 . 12 3 22 . . 25 21 36 . Total Damage 10945 | . . 49 . . 448 . 858 213 . 475 53 2080 . . 3814 875 2080 . Kills 39 | . . 1 . . 1 . 8 . . 3 . 4 . . 9 1 12 . Allies Corrupted 1 | . . . . . . 1 . . . . . . . . . . . . Allies Melted 6 | . . . . . . . . . . . 5 . . . . 1 . . X0-1V1 Amusement Gains 525 | . 13 2 100 20 . . 102 45 5 . . . 26 . 92 26 30 64 Good Acts 146 | . . 37 7 4 7 1 15 6 5 7 5 3 6 2 4 4 20 13 Bad Acts 130 | . . 22 8 2 8 14 13 3 5 . . 9 9 5 14 4 3 11 Intel | -11 -10 -10 -8 -8 -8 -6 -5 -4 -4 -4 -4 -3 -3 -3 -3 -2 -1 -1 ------- Run | Yrd Mat Sub Mat Sto Rec Fac Fac Fac Upp Upp War Pro Res Qua Sec Res Acc Com Active Infowar (turns) 2263 | . . 542 . . . 1 . . 1 . 1 . 126 216 440 108 204 624 Optics 542 | . . 542 . . . . . . . . . . . . . . . . Terrain 1 | . . . . . . . . . 1 . . . . . . . . . Traps 1 | . . . . . . 1 . . . . . . . . . . . . Cloaking 1719 | . . . . . . . . . . . 1 . 126 216 440 108 204 624 Robot Analysis Total . | . . . . . . . . . . . . . . . . . . . Derelict Logs Recovered 2 | . . . . . . . . . 1 1 . . . . . . . . Drone Launches . | . . . . . . . . . . . . . . . . . . . Drone Recoveries . | . . . . . . . . . . . . . . . . . . . Exploration | -11 -10 -10 -8 -8 -8 -6 -5 -4 -4 -4 -4 -3 -3 -3 -3 -2 -1 -1 ------------- Run | Yrd Mat Sub Mat Sto Rec Fac Fac Fac Upp Upp War Pro Res Qua Sec Res Acc Com Turns Passed 14751 | 53 541 1585 919 404 2077 1469 2248 500 1262 438 732 611 246 216 440 108 278 624 Spaces Moved 12479 | 31 374 912 415 173 951 1018 1185 437 797 342 897 640 526 522 860 299 692 1408 Core 13 | 13 . . . . . . . . . . . . . . . . . . Treads 3357 | . . 566 351 173 879 66 199 437 538 . 122 26 . . . . . . Legs 6910 | 18 374 17 . . . 945 490 . 160 342 8 249 526 522 860 299 692 1408 Wheels 570 | . . 329 64 . 31 . 78 . . . . 68 . . . . . . Hover 742 | . . . . . 41 7 418 . 5 . . 271 . . . . . . Flight 887 | . . . . . . . . . 94 . 767 26 . . . . . . Fastest Speed 33 | 50 120 120 120 160 122 79 79 82 67 91 55 33 33 33 33 33 33 33 Average Speed 87 | 113 120 146 163 166 167 115 124 82 112 91 61 58 33 33 33 33 33 33 Slowest Speed 240 | 150 120 160 240 240 240 159 196 82 238 91 91 117 33 33 33 33 33 33 Overloaded Moves . | . . . . . . . . . . . . . . . . . . . Propulsion Burnouts . | . . . . . . . . . . . . . . . . . . . Robots Hopped . | . . . . . . . . . . . . . . . . . . . Potential Cave-ins . | . . . . . . . . . . . . . . . . . . . Cave-ins Triggered . | . . . . . . . . . . . . . . . . . . . Teleports 109 | . . . . . . . . . . . . . . . 15 11 26 57 Exploration Rate (%) 46 | 4 67 51 33 25 98 25 29 20 84 56 90 59 19 65 62 20 30 47 Regions Visited 18 Branch Regions 10 Pre-discovered Areas 2 | . 1 . . . . . . . 1 . . . . . . . . . Known Exits Taken 7 | . . 1 1 . . 1 . . 1 1 . 1 1 . . . . . Unknown Exits Taken 11 | 1 1 . . 1 1 . 1 1 . . 1 . . 1 1 1 1 . Scrap Searched 9 | . . 2 . . . . . . 3 2 . 2 . . . . . . Spaces Dug 49 | . . 5 3 . . . 13 6 2 . . . 5 1 3 1 2 8 Terrain Destroyed 630 | . . 9 8 . 14 138 109 65 50 7 . 37 6 1 44 1 111 30 Melee 12 | . . . . . . . . . . . . . . 1 2 1 2 6 Projectile 194 | . . 9 4 . 1 28 56 12 26 7 . 37 6 . 1 . 1 6 AOE 424 | . . . 4 . 13 110 53 53 24 . . . . . 41 . 108 18 Terrain Rammed . | . . . . . . . . . . . . . . . . . . . Walls Destroyed . | . . . . . . . . . . . . . . . . . . . Machines Disabled . | . . . . . . . . . . . . . . . . . . . Actions | -11 -10 -10 -8 -8 -8 -6 -5 -4 -4 -4 -4 -3 -3 -3 -3 -2 -1 -1 --------- Run | Yrd Mat Sub Mat Sto Rec Fac Fac Fac Upp Upp War Pro Res Qua Sec Res Acc Com Total 15353 | 46 428 1084 568 244 1400 1200 1716 544 1114 450 1058 824 591 556 972 307 721 1530 Wait 1365 | . 26 67 31 30 306 87 287 50 150 82 112 55 7 9 21 . 3 42 Move 12461 | 30 373 911 414 172 951 1017 1184 436 796 341 896 639 525 521 859 298 691 1407 Hop . | . . . . . . . . . . . . . . . . . . . Pick Up 116 | 7 4 15 17 5 4 7 16 5 7 . 13 7 2 3 1 . . 3 Fast Attach 86 | 5 3 6 6 8 1 8 10 3 4 2 2 3 7 . 8 . 5 5 Attach 61 | 1 . 5 5 5 . 4 6 4 5 . . . 3 1 8 4 3 7 Detach 22 | . 1 1 1 . 6 . 2 . 1 1 1 1 . . 5 1 . 1 Swap 52 | . . 5 . 1 4 3 16 2 3 4 9 3 . 2 . . . . Drop 128 | . 2 19 13 3 20 10 13 2 10 5 10 11 2 4 2 2 . . Fire 604 | . 19 55 70 17 21 52 175 35 65 15 14 40 3 2 7 . 7 7 Melee 58 | . . . . . . . . . . . . . 6 4 18 1 6 23 Ram 7 | . . . . . . 1 . . . . . . 1 . 4 . . 1 Kick 181 | 3 . . . . . 10 5 . . . . 44 35 10 35 1 5 33 Crush 27 | . . . 10 3 1 1 2 7 3 . . . . . . . . . Escape Stasis 6 | . . . . . . . . . . . . . . . 4 . 1 1 Rewire 179 | . . . 1 . 86 . . . 70 . 1 21 . . . . . . Trap . | . . . . . . . . . . . . . . . . . . . Miscellaneous . | . . . . . . . . . . . . . . . . . . . Route ------- -11/Scrapyard -10/Materials (discovered 4 exits: [*Mat x2] / [*Min] / *Sub) -10/Subcaves (discovered 2 exits: *Mat / *Rec) -8/Materials (discovered 3 exits: *Fac x2 / *Sto) -8/Storage -8/Recycling -6/Factory (discovered 3 exits: *Fac x2 / *Low) -5/Factory (discovered 3 exits: *Fac / Upp x2) -4/Factory -4/Upper Caves -4/Upper Caves (discovered 2 exits: Res / *War) -4/Warlord -3/Proximity Caves -3/Research (discovered 2 exits: *Qua x2) -3/Quarantine (discovered 2 exits: *Sec / [*Frg]) -3/Section 7 -2/Research -1/Access -1/Command To Epsilon Eridani History --------- Turn | Location | Event 16 | -11/Scrapyard | Discovered new exit (range 16) 54 | -11/Scrapyard | Entered Materials 141 | -10/Materials | Discovered new exit (range 7) 215 | -10/Materials | Discovered new exit (range 12) 289 | -10/Materials | Discovered new exit (range 15) 301 | -10/Materials | Build established: Mutant 574 | -10/Materials | Discovered new exit (range 7) 591 | -10/Materials | Prayed at D.C.S.S. Altar Unit 595 | -10/Materials | Entered Subcaves 692 | -10/Subcaves | Shifting Twisted Machinery released Piercing Trap 698 | -10/Subcaves | Shifting Twisted Machinery released Shrapnel Trap 733 | -10/Subcaves | X0-1V1 sent allied H-61 Shepherd (x1) 776 | -10/Subcaves | Discovered new exit (range 14) 847 | -10/Subcaves | Utility slot count permanently improved by X0-1V1 (+1) 1240 | -10/Subcaves | Core integrity restored by X0-1V1 (+52) 1341 | -10/Subcaves | A swath of the cavern ceiling suddenly collapsed 1432 | -10/Subcaves | System corruption reached 10% 1454 | -10/Subcaves | Core integrity restored by X0-1V1 (+40) 1466 | -10/Subcaves | X0-1V1 activates XOMVISION 1479 | -10/Subcaves | Identified exit to Materials 1479 | -10/Subcaves | X0-1V1 revealed exit location to -8/Materials 1576 | -10/Subcaves | X0-1V1 revealed exit location to -8/Materials 1688 | -10/Subcaves | X0-1V1 activates XOMVISION 1693 | -10/Subcaves | X0-1V1 mutated your Propulsion slot to Weapon slot 1708 | -10/Subcaves | X0-1V1 sent you into danger 1710 | -10/Subcaves | X0-1V1 sent hostile S-10 Pest (x5) 1733 | -10/Subcaves | X0-1V1 tapped a No Entrance sign 1754 | -10/Subcaves | X0-1V1 mutated your Weapon slot to Propulsion slot 1759 | -10/Subcaves | Core integrity restored by X0-1V1 (+52) 1776 | -10/Subcaves | X0-1V1 sent hostile G-34 Mercenary (x3) 1797 | -10/Subcaves | Weapon slot count temporarily expanded by X0-1V1 (+4) 1905 | -10/Subcaves | Shifting Twisted Machinery released Mak. Sword 1953 | -10/Subcaves | Forcibly received Sfc. Transmogifier from X0-1V1 2037 | -10/Subcaves | X0-1V1 activates XOMVISION 2093 | -10/Subcaves | Visited 4L-MR0's lab 2105 | -10/Subcaves | Found Sfc. Transmogrifier 2116 | -10/Subcaves | Found Meta Core 2180 | -10/Subcaves | Entered Materials 2180 | -8/Materials | Evolved 4 slots: Propulsion x2, Utility x2 2183 | -8/Materials | Energy generation permanently improved by X0-1V1 (+20; -200 max core) 2195 | -8/Materials | X0-1V1 released a cloud of subatomizers 2258 | -8/Materials | Identified exit to Factory 2258 | -8/Materials | X0-1V1 revealed exit location to -7/Factory 2466 | -8/Materials | X0-1V1 sent hostile G-34 Mercenary (x4) 2509 | -8/Materials | Identified exit to Storage 2509 | -8/Materials | X0-1V1 revealed exit location to -8/Storage 2676 | -8/Materials | Destroyed 10 combat bots 2702 | -8/Materials | X0-1V1 mutated your Propulsion slot to Weapon slot 2730 | -8/Materials | X0-1V1 upgraded hostiles (x1) 2812 | -8/Materials | Discovered exit to Factory (range 16) 2900 | -8/Materials | Sterilization system engaged 2900 | -8/Materials | Non-combat units ordered to evacuate 3000 | -8/Materials | Combat units ordered to evacuate 3031 | -8/Materials | Core integrity fell below 50% 3062 | -8/Materials | Core integrity fell below 20% 3092 | -8/Materials | Lost 4 parts (1p1n2w) 3099 | -8/Materials | Entered Storage 3189 | -8/Storage | X0-1V1 announced a LAN party 3312 | -8/Storage | Core integrity restored by X0-1V1 (+98) 3331 | -8/Storage | X0-1V1 activates XOMVISION 3445 | -8/Storage | Met a pair of Derelict thieves 3490 | -8/Storage | Used back door to open Recycling access 3490 | -8/Storage | Discovered new exit (range 5) 3503 | -8/Storage | Entered Recycling 3503 | -8/Recycling | Accompanied by 2 allies 3590 | -8/Recycling | Build established: Scavenger-Tank 3950 | -8/Recycling | Build established: Tank 4289 | -8/Recycling | Discovered new exit (range 16) 4430 | -8/Recycling | Entered Scraplab 4440 | -8/Recycling | Found Prototype Device 4440 | -8/Recycling | Identified Scrap Engine 4767 | -8/Recycling | Core integrity permanently improved by X0-1V1 (+400) 4890 | -8/Recycling | Build established: Construct 4999 | -8/Recycling | X0-1V1 added 0b10 threat records associated with you (considerable) 5259 | -8/Recycling | X0-1V1 vaporized surrounding terrain (radius 24) 5346 | -8/Recycling | Build established: Commander-Construct 5416 | -8/Recycling | X0-1V1 added 0b10 threat records associated with you (major) 5484 | -8/Recycling | System corruption reached 10% 5522 | -8/Recycling | X0-1V1 rewrote Rogue 3a IFF filter 5566 | -8/Recycling | Lost 4 allies 5580 | -8/Recycling | Entered Factory 5580 | -6/Factory | Accompanied by 1 ally 5580 | -6/Factory | Evolved 4 slots: Propulsion x1, Utility x3 5686 | -6/Factory | Discovered new exit (range 6) 5724 | -6/Factory | System corruption reached 10% 5782 | -6/Factory | X0-1V1 added 0b10 threat records associated with you (major) 5818 | -6/Factory | Build established: Construct 5893 | -6/Factory | Fabricated Coil Gun? 5907 | -6/Factory | X0-1V1 mutated your Utility slot to Power slot 5930 | -6/Factory | First assault squad dispatched 6171 | -6/Factory | X0-1V1 redirected Transport squads to designated parking area 6552 | -6/Factory | Lost 4 parts (1p1n1u1w) 6579 | -6/Factory | X0-1V1 mutated your Weapon slot to Utility slot 6617 | -6/Factory | Discovered new exit (range 8) 6699 | -6/Factory | Identified exit to Lower Caves 6755 | -6/Factory | X0-1V1 added 0b10 threat records associated with you (major) 6803 | -6/Factory | X0-1V1 sent hostile Guerrilla (x2) 6829 | -6/Factory | Build established: Scavenger-Mutant 6908 | -6/Factory | Discovered new exit (range 8) 6917 | -6/Factory | Identified exit to Factory 6948 | -6/Factory | Allied Derelicts emerged from ambush trap array 7034 | -6/Factory | Cargo convoy interrupted 7049 | -6/Factory | Entered another Factory area 7049 | -5/Factory | Evolved 2 slots: Propulsion x1, Weapon x1 7085 | -5/Factory | X0-1V1 enhanced Transport squad support 7208 | -5/Factory | Repaired Hcp. Storage Unit? 7295 | -5/Factory | Fabricated G-50 Soldier? 7342 | -5/Factory | Garrison activated, responded to threat 7611 | -5/Factory | Build established: Construct 7649 | -5/Factory | First assault squad dispatched 7680 | -5/Factory | Identified exit to Upper Caves 7680 | -5/Factory | X0-1V1 revealed exit location to -5/Upper Caves 7764 | -5/Factory | Cargo convoy interrupted 7789 | -5/Factory | X0-1V1 whisked you away to safety 7917 | -5/Factory | X0-1V1 foreshadows a heat wave 8040 | -5/Factory | System corruption reached 10% 8044 | -5/Factory | X0-1V1 whisked you away to safety 8055 | -5/Factory | Ambient heat levels rising (+10) 8075 | -5/Factory | Build established: Scavenger-Construct 8197 | -5/Factory | Ambient heat levels rising (+10) 8311 | -5/Factory | Ambient heat levels falling (-10) 8528 | -5/Factory | X0-1V1 sent hostile Guerrilla (x2) 8550 | -5/Factory | Ambient heat levels falling (-10) 8874 | -5/Factory | Spotted B-75 Beast 8934 | -5/Factory | Destroyed B-75 Beast 9069 | -5/Factory | X0-1V1 downgraded hostiles (x6) 9194 | -5/Factory | Discovered new exit (range 16) 9297 | -5/Factory | Entered another Factory area 9297 | -4/Factory | Evolved 2 slots: Utility x2 9394 | -4/Factory | X0-1V1 activates XOMVISION 9547 | -4/Factory | First assault squad dispatched 9673 | -4/Factory | X0-1V1 sent allied Chaos Knight 2.0 (x1) 9689 | -4/Factory | X0-1V1 activates XOMVISION 9706 | -4/Factory | Lost 6 parts (5u1w) 9792 | -4/Factory | Discovered new exit (range 8) 9797 | -4/Factory | Entered Upper Caves 9867 | -4/Upper Caves | Lost 3 parts (1p2u) 9969 | -4/Upper Caves | Build established: Construct 10107 | -4/Upper Caves | Identified exit to Upper Caves 10107 | -4/Upper Caves | X0-1V1 revealed exit location to -4/Upper Caves 10136 | -4/Upper Caves | X0-1V1 vaporized surrounding terrain (radius 22) 10292 | -4/Upper Caves | X0-1V1 sent you into danger 10294 | -4/Upper Caves | Learned 8 Research zone layouts 10294 | -4/Upper Caves | Learned Extension trap positions 10295 | -4/Upper Caves | Attracted the attention of an 0b10 base 10336 | -4/Upper Caves | Destroyed 7 combat bots 10405 | -4/Upper Caves | Attacked by a delusional Derelict stockpiling Unaware 11059 | -4/Upper Caves | Entered another Upper Caves area 11059 | -4/Upper Caves | Accompanied by 3 allies 11060 | -4/Upper Caves | Identified exit to Research 11164 | -4/Upper Caves | Identified exit to Warlord 11164 | -4/Upper Caves | X0-1V1 revealed exit location to -4/Warlord 11211 | -4/Upper Caves | Learned Research emergency access door positions 11266 | -4/Upper Caves | Spotted B-86 Titan 11311 | -4/Upper Caves | Destroyed B-86 Titan 11315 | -4/Upper Caves | X0-1V1 activates XOMVISION 11471 | -4/Upper Caves | Attracted the attention of an 0b10 checkpoint 11497 | -4/Upper Caves | Entered Warlord 11497 | -4/Warlord | Accompanied by 1 ally 11712 | -4/Warlord | Found Prototype Special Weapon 11713 | -4/Warlord | Found Prototype Special Weapon 11715 | -4/Warlord | Found Prototype Special Weapon 11717 | -4/Warlord | Found Prototype Special Weapon 11718 | -4/Warlord | Found Prototype Special Weapon 11736 | -4/Warlord | Met Warlord 11749 | -4/Warlord | Warlord's base attacked by MAIN.C 11796 | -4/Warlord | Identified RU-N14's Throwing Claymores v3 (x5) 11821 | -4/Warlord | Found RU-N14's Throwing Claymores v3 11856 | -4/Warlord | Found Prototype Piercing Weapon 11901 | -4/Warlord | Found Prototype Device 11901 | -4/Warlord | Identified Exp. Cloaking Device 11907 | -4/Warlord | Found Prototype Device 11907 | -4/Warlord | Identified Thermal Barrier 11921 | -4/Warlord | Found Prototype Hackware 12009 | -4/Warlord | Spotted B-90 Cyclops 12010 | -4/Warlord | Spotted B-90 Cyclops 12029 | -4/Warlord | X0-1V1 turns hostiles against one another 12036 | -4/Warlord | Identified Vortex Lance 12043 | -4/Warlord | Identified Ghost Barrier 12045 | -4/Warlord | Warlord forces counterattacked 12050 | -4/Warlord | Lost 4 allies 12075 | -4/Warlord | Spotted B-86 Titan 12120 | -4/Warlord | Lost 6 allies 12141 | -4/Warlord | Opened side exit 12221 | -4/Warlord | Discovered new exit (range 9) 12229 | -4/Warlord | Entered Proximity Caves 12353 | -3/Proximity Caves | X0-1V1 mutated your Utility slot to Propulsion slot 12422 | -3/Proximity Caves | X0-1V1 sent hostile Y-72 Warden (x2) 12596 | -3/Proximity Caves | X0-1V1 vaporized surrounding terrain (radius 23) 12718 | -3/Proximity Caves | X0-1V1 sent hostile Fireman (x3) 12740 | -3/Proximity Caves | Discovered exit to Research (range 16) 12838 | -3/Proximity Caves | X0-1V1 sent hostile X-77 Beamer (x3) 12840 | -3/Proximity Caves | Entered Research 12840 | -3/Research | Evolved 2 slots: Utility x2 12841 | -3/Research | Identified exit to Quarantine 12932 | -3/Research | X0-1V1 sent you into danger 12976 | -3/Research | Spotted B-86 Titan 13086 | -3/Research | Entered Quarantine 13092 | -3/Quarantine | Found Alien Slashing Weapon 13138 | -3/Quarantine | Spotted Alpha 7 13152 | -3/Quarantine | Identified Sigix Broadsword 13157 | -3/Quarantine | Found Alien Artifact 13232 | -3/Quarantine | Met incapacitated Sigix Warrior 13232 | -3/Quarantine | Lockdown squad dispatched 13237 | -3/Quarantine | Found Sigix Containment Pod 13262 | -3/Quarantine | System corruption reached 10% 13268 | -3/Quarantine | X0-1V1 sent hostile G-67 Veteran (x3) 13276 | -3/Quarantine | Spotted Fortress 13287 | -3/Quarantine | X0-1V1 enhanced Transport squad support 13290 | -3/Quarantine | X0-1V1 activates XOMVISION 13301 | -3/Quarantine | Discovered new exit (range 6) 13301 | -3/Quarantine | Discovered new exit (range 6) 13302 | -3/Quarantine | Entered Section 7 13354 | -3/Section 7 | Found Alien Artifact 13354 | -3/Section 7 | Identified Integrated Reactor 13354 | -3/Section 7 | Installed Integrated Reactor, increased core energy generation (+10) 13360 | -3/Section 7 | X0-1V1 added 0b10 threat records associated with you (minor) 13413 | -3/Section 7 | Spotted S7 Guard 13414 | -3/Section 7 | System corruption reached 30% 13457 | -3/Section 7 | Destroyed S7 Guard 13467 | -3/Section 7 | X0-1V1 sent you into danger 13480 | -3/Section 7 | Found Alien Artifact 13480 | -3/Section 7 | Identified Integrated Mediator 13480 | -3/Section 7 | Installed Integrated Mediator, increased core attachment efficiency 13513 | -3/Section 7 | X0-1V1 announced a LAN party 13515 | -3/Section 7 | Found Integrated Reactor 13515 | -3/Section 7 | Installed Integrated Reactor, increased core energy generation (+10) 13529 | -3/Section 7 | Scanned by Researcher 13537 | -3/Section 7 | X0-1V1 mutated your Weapon slot to Utility slot 13539 | -3/Section 7 | Found Alien Artifact 13539 | -3/Section 7 | Identified Navigation Efficiency Matrix 13539 | -3/Section 7 | Installed Navigation Efficiency Matrix, process failed with unexpected side effects 13552 | -3/Section 7 | Search patrols dispatched 13601 | -3/Section 7 | Spotted Executioner 13601 | -3/Section 7 | Spotted Executioner 13602 | -3/Section 7 | X0-1V1 added 0b10 threat records associated with you (major) 13608 | -3/Section 7 | Intercept squad dispatched 13620 | -3/Section 7 | Spotted Executioner 13620 | -3/Section 7 | Spotted Executioner 13628 | -3/Section 7 | Activated Sigix Exoskeleton 13628 | -3/Section 7 | Unable to understand communications from Sigix Warrior 13664 | -3/Section 7 | Spotted B-99 Colossus 13687 | -3/Section 7 | Spotted Alpha 7 13687 | -3/Section 7 | Spotted Alpha 7 13698 | -3/Section 7 | Spotted B-86 Titan 13705 | -3/Section 7 | Unable to understand communications from Sigix Warrior 13710 | -3/Section 7 | Spotted Tracker 13711 | -3/Section 7 | Discovered new exit (range 12) 13711 | -3/Section 7 | Spotted Tracker 13713 | -3/Section 7 | Spotted S7 Guard 13726 | -3/Section 7 | Unable to understand communications from Sigix Warrior 13738 | -3/Section 7 | X0-1V1 sent allied X-72 Disruptor (x2) 13741 | -3/Section 7 | Unable to understand communications from Sigix Warrior 13742 | -3/Section 7 | Entered Research 13742 | -2/Research | Accompanied by 1 ally (Sigix Warrior) 13742 | -2/Research | Warlord forces began assault on 0b10 13742 | -2/Research | Evolved 2 slots: Utility x2 13757 | -2/Research | Destroyed 11 combat bots 13763 | -2/Research | X0-1V1 sent allied S-43 Plague (x3) 13787 | -2/Research | X0-1V1 announced a LAN party 13843 | -2/Research | Discovered new exit (range 15) 13850 | -2/Research | Entered Access 13850 | -1/Access | Accompanied by 1 ally (Sigix Warrior) 13850 | -1/Access | Evolved 2 slots: Weapon x2 13856 | -1/Access | System corruption reached 10% 13863 | -1/Access | Spotted Executioner 13872 | -1/Access | X0-1V1 whisked you away to safety 13933 | -1/Access | Spotted B-99 Colossus 13967 | -1/Access | Energy Cycler disabled 14024 | -1/Access | Build established: Wizard-Mutant 14025 | -1/Access | Unable to understand communications from Sigix Warrior 14032 | -1/Access | Spotted Investigator 14034 | -1/Access | X0-1V1 sent allied Wasp (x3) 14061 | -1/Access | Garrison activated, responded to threat 14075 | -1/Access | Intercept squad dispatched 14079 | -1/Access | X0-1V1 activates XOMVISION 14093 | -1/Access | Destroyed Investigator 14096 | -1/Access | Spotted Tracker 14097 | -1/Access | Spotted Tracker 14101 | -1/Access | Found Prototype Launcher 14101 | -1/Access | Identified Containment Facilitator 14119 | -1/Access | Spotted B-99 Colossus 14119 | -1/Access | Spotted B-99 Colossus 14125 | -1/Access | Discovered new exit (range 3) 14128 | -1/Access | Entered Command 14128 | -1/Command | Accompanied by 1 ally (Sigix Warrior) 14134 | -1/Command | Lost 3 parts (2u1w) 14183 | -1/Command | X0-1V1 sent hostile X-82 Rainmaker (x2) 14185 | -1/Command | Lost 3 parts (3u) 14269 | -1/Command | Spotted Alpha 7 14269 | -1/Command | Spotted Striker 14270 | -1/Command | Spotted Striker 14270 | -1/Command | Spotted Executioner 14272 | -1/Command | Spotted Alpha 7 14276 | -1/Command | System corruption reached 30% 14283 | -1/Command | Disengaged cave seal 14283 | -1/Command | Derelicts emerged from the dark tunnel 14283 | -1/Command | Welcomed Warlord to Command 14283 | -1/Command | P-80 Master assimilated allied 1R-OYV(s) 14292 | -1/Command | Lost 3 parts (1p1n1u) 14378 | -1/Command | First assault squad dispatched 14418 | -1/Command | Spotted B-99 Colossus 14418 | -1/Command | Spotted Executioner 14418 | -1/Command | Spotted B-99 Colossus 14419 | -1/Command | Spotted Executioner 14419 | -1/Command | Spotted Executioner 14419 | -1/Command | Discovered new exit (range 4) 14450 | -1/Command | Lost 4 parts (2u2w) 14505 | -1/Command | Spotted B-99 Colossus 14601 | -1/Command | Warlord destroyed during the assault 14604 | -1/Command | X0-1V1 activates XOMVISION 14614 | -1/Command | X0-1V1 whisked you away to safety 14655 | -1/Command | Disengaged cave seal 14655 | -1/Command | Derelicts emerged from the dark tunnel 14724 | -1/Command | Lost 3 allies 14740 | -1/Command | Destroyed Striker 14745 | -1/Command | P-80 Master assimilated allied AH-W5I(i) 14752 | *** | Escaped! Last Messages --------------- 14749_ Penetrated by Slug. 14749_ Field strength at 25. 14750_ Stasis field depleted. 14751_ Penetrated by Slug. 14751_ Slug penetrates Wall. 14751_ Penetrated by Slug. 14752_ System corrupted: Heat flow error (+116). 14752_ K-01 Serf collects debris. 14752_ Knocked back. 14752_ X0-1V1's Piety Tracker destroyed. 14752_ X0-1V1 is mildly amused. 14752_ Knocked back. 14752_ Penetrated by Slug. 14752_ Slug penetrates O-32 Director. 14752_ Slug penetrates Wall. 14752_ Penetrated by Slug. 14752_ O-32 Director suffers critical hit (Destroy). 14752_ O-32 Director destroyed. [Achievement: Force of Scrap] [Achievement: Chaotic Teddy Bear] Map ----- +----------------------------------------------------+ | ???????# #" # " ## | | ???????# #"#########+#############+""!"""##! | | ???????# *" %% *%=%! [!! ! = =%%= #% | | ???????#%% #########!%*%% |%*[!! /% # | | ???????#%% % #?????###%=%=%! %|%[! % / | | ???????### %###?????# "!*/%%% *=! " | | ?????????#%=#???????##"==/%#######/"#####" # | | ?????????#[ #????????##!!%*#?????# + # | | ?????????# #????????##!=*+##????# "# # | | ?????????# #????????# %=^! #????# "" ## # | | ?????????# #???????## ^% = ##???#""" ! ## ### | | ?????????# #???????# % #???#"T ## "## | | ?????????# #???????## ^ k ##???#""" ## | | ?????????# #???????# #???# "" #" | | ?????????# #???????## %^ ##???# ##% | | ???####??# #???????# #???# ##= | | ???# ??# #???????## % ;##??# ## | | ???# ?# #???????# E ;#??# !## | | ???# ?## #?????###; % ;;##?#%#+###### | | ##### #### #?????#BB BB#?### #????# | | "+% " #?????#BB % BB##??# #????# | | " " #?????# % ;#??# #######""+### | | # " #?????# #???# ## | | " + #?????# #???# ## % | | ##### ####%%#?????# "" #???# ## % % " | | ???# #?# %#?????# "@ #???? ?# "" | | ???# #?# %"?????# % #???? ?# % = T | | ???# #?#% ##????# !% #???? ?# !%! "" | | ???#####?#% #?????# ! ^ #???? ?# """"! " | | ?????????# #?????# #???? ?# """" | | ?????????# #?????# #????#?# """" | | ?????????# #?????##############??????# """" | | ?????????# #?????????????????????????# | | ????????## ##?????????###########????# ? | | ????????# ########### #????###/#?###### | | ????????# # #??????? #??????? | | ????????# + """" #??##### #??????? | | ????????# ## ""R"" #??# #??????? | | ????????# ""## "" "" #??# #??????? | | ????????# ""## %* #??# #??????? | | ????????# ""## [ #??# ####???? | | ????????# T"## #??# #???? | | ????????# """######"+####### #???? | | ????????### "" #???# # #???? | | ??????????# #???# / #???? | | ??????????# #???# "" # #???? | | ??????????# #???# """" # #???? | | ??????????# #???# """" # #???? | | ??????????# = #???# "" # ####? | | ??????????####### #???# # #? | +----------------------------------------------------+ Best States ------------- Heat Dissipation 227 Coolant Potential 100 Energy Generation 105 Energy Capacity 3301 Matter Stores 800 Matter Capacity 1000 Sight Range 22 Terrain Scan Density 10 Cloak Strength 4 Base Temperature (-) 200 Armor Coverage 600 Resistance: KI 44 Resistance: TH 50 Resistance: EM 25 Utility Shielding 66 Weapon Cycling 20 Evasion (%) 80 Recoil Reduction 6 Matter Filtering 30 Particle Charging 20 Kinecelleration 30 Offensive Hacking 28 Defensive Hacking 32 Item Schematics ----------------- Cld. Impulse Thruster | -3/Section 7 | Archive Robot Schematics ------------------ S-43 Plague | -3/Section 7 | Archive M-30 Cleanser | -3/Section 7 | Archive Fabricated ------------ Coil Gun | x2 | -6/Factory | Preloaded G-50 Soldier | x3 | -5/Factory | Preloaded Repaired ---------- Hcp. Storage Unit | 16% | -5/Factory Studied --------- Hvy. Shock Bomb Launcher | -4/Factory | Hacked Alien Tech Used ----------------- Sigix Broadsword Integrated Reactor Integrated Mediator Navigation Efficiency Matrix Achievements -------------- Chaotic Teddy Bear Coming In Hot Force of Scrap Hornet's Nest Irresistible Scrap Challenges ------------ Scavenger Game ------ Seed CatalystCryofiberMaul Manual? 0 Play Time 03:15:51 Cumulative 498.5 hours Start 2026.07.18 @ 16:40:26 End 2026.07.18 @ 19:59:35 Sessions 1 Manual Loads 0 Difficulty Rogue Special Mode None Game No. 251 Rogue 251 Adventurer 0 Explorer 0 Win Type 0 Total 15 Types 10/0/2/0/0/0/0/1/0/2 Lore% 86 Gallery% 81 Achievement% 69 Wizard Run 0 Options --------- Layout 0 ASCII 0 Keyboard 0 Movement Mouse Keybinds 0 Fullscreen 1 Font 18/SmallcapsGlow Map View 76x50 Zoom Use 0% Tactical HUD 1 Map Filters NONE Filters NONE Steam 1 RUN: e67dab8d-69b4-4b44-9d92-daa728f75cab